Cogmind - Beta 15 @@@ ROGUE MODE // 2025.05.22 @ 16:55:49 Player: Figgis Result: Destroyed by D-53 Grenadier with Mini Grenade Launcher Performance ------------- Evolutions (0) 0 Regions Visited (4) 800 Robots Destroyed (22) 110 Value Destroyed (474) 474 Prototype IDs (23) 460 Alien Tech Used (0) 0 Bonus (321) 321 TOTAL SCORE: 2165 Bonus ------- Follower Combat Kills 21 Aligned with FarCom 300 Cogmind --------- Core Integrity 0/250 Matter 198/300 Energy 100/100 System Corruption 0% Temperature Cool (0) Movement Core (400) Ox7 Location -9/Mines Parts ------- > --- POWER (1) -------- (None) > --- PROPULSION (2) --- (None) > --- UTILITY (2) ------ Large Storage Unit > --- WEAPON (2) ------- Rocket Launcher > --- INVENTORY (15) --- Ion Engine Aluminum Leg Aluminum Leg Aluminum Leg Scrap Suit Small Storage Unit Experimental Sensor Array Terrain Scanner Light Armor Plating Supersonic Drone Bay (1/1) Small Laser Light Assault Rifle Light Assault Rifle Signal Generator Peak State ------------ > --- POWER ------------ (None) > --- PROPULSION ------- Aluminum Leg Flexi-carbon Leg > --- UTILITY ---------- Large Storage Unit > --- WEAPON ----------- Light Assault Rifle Rocket Launcher > --- INVENTORY -------- Ion Engine Aluminum Leg Aluminum Leg Aluminum Leg Scrap Suit Small Storage Unit Experimental Sensor Array Terrain Scanner Light Armor Plating Supersonic Drone Bay Small Laser Light Assault Rifle Light Assault Rifle Signal Generator [Rating: 14] Favorites ----------- Power Ion Engine Engine Ion Engine Propulsion Aluminum Leg Leg Aluminum Leg Utility Light Armor Plating Storage Large Storage Unit Protection Light Armor Plating Weapon Light Assault Rifle Energy Gun EM Pulse Gun Ballistic Gun Light Assault Rifle Launcher Rocket Launcher Build | -11 -10 -10 -10 -9 ------- Run | Yrd Mat Min Exi Min Slots Evolved . | . . . . . Power . | . . . . . Propulsion . | . . . . . Utility . | . . . . . Weapon . | . . . . . Parts Attached 18 | 6 10 . . 2 Power 2 | 1 1 . . . Engine 2 | 1 1 . . . Core . | . . . . . Reactor . | . . . . . Propulsion 6 | 2 3 . . 1 Treads . | . . . . . Leg 6 | 2 3 . . 1 Wheel . | . . . . . Hover . | . . . . . Flight . | . . . . . Utility 4 | 1 3 . . . Device . | . . . . . Storage 2 | 1 1 . . . Processor . | . . . . . Hackware . | . . . . . Protection 2 | . 2 . . . Artifact . | . . . . . Weapon 6 | 2 3 . . 1 Energy Gun 3 | 2 1 . . . Energy Cannon . | . . . . . Ballistic Gun 2 | . 2 . . . Ballistic Cannon . | . . . . . Launcher 1 | . . . . 1 Special Weapon . | . . . . . Impact Weapon . | . . . . . Slashing Weapon . | . . . . . Piercing Weapon . | . . . . . Special Melee Weapon . | . . . . . Unidentified Prototypes . | . . . . . Parts Lost 8 | . 3 . . 5 Power 2 | . 1 . . 1 Propulsion 4 | . 2 . . 2 Utility 1 | . . . . 1 Weapon 1 | . . . . 1 Highest Loss Streak 3 | . 3 . . 3 To Critical Strikes . | . . . . . Average Backups 6 | 3 3 7 12 13 Power 1 | 1 1 1 1 1 Propulsion 1 | . . 2 3 3 Utility 1 | . . 1 5 6 Weapon 1 | 1 1 1 3 3 Tool/Special . | . . . . . Unused Backups 11 | . 1 . . 10 Power 2 | . 1 . . 1 Propulsion 3 | . . . . 3 Utility 5 | . . . . 5 Weapon 1 | . . . . 1 Tool/Special . | . . . . . Average Slot Usage (%) 93 | . 84 100 100 85 Engine 11 | . 7 14 14 7 Leg 25 | . 21 28 28 28 Storage 14 | . 14 14 14 14 Protection 13 | . 12 14 14 7 Energy Gun 4 | . 12 . . . Ballistic Gun 23 | . 15 28 28 19 Peak Build Rating 14 | 6 7 10 11 14 Average Rating 7 | 2 5 8 10 12 On Entrance 6 | . 6 7 10 11 Naked Turns . | . . . . . Heaviest Build 30 | 11 30 30 30 30 Greatest Support 30 | 20 20 20 20 30 Greatest Overweight (x) 2 | . 2 1 1 1 Average Overweight (x) . | . . 1 1 . Largest Inventory Capacity 15 | 8 15 15 15 15 Average Capacity 12 | 5 8 15 15 15 Most Carried 15 | 5 6 14 15 15 Average Carried 7 | 3 3 8 14 15 Final Capacity 15 | 8 15 15 15 15 Final Carried 15 | 2 4 14 15 15 Class Distribution -------------------- 69% | Scavenger-Mutant 30% | Mutant Dominant Class ---------------- Mutant | -10/Materials Scavenger-Mutant | -10/Mines Scavenger-Mutant | -10/Exiles Mutant | -9/Mines Resources | -11 -10 -10 -10 -9 ----------- Run | Yrd Mat Min Exi Min Matter Collected 419 | 228 155 24 . 12 Remotely . | . . . . . Salvage Created 766 | . 532 133 . 101 Parts 52 | . 38 10 . 4 Haulers Intercepted 1 | . 1 . . . Recyclers Shooed 1 | . . 1 . . Parts Field Recycled . | . . . . . Retrieved Matter . | . . . . . Parts Self-Destructed . | . . . . . Prevented . | . . . . . Kills | -11 -10 -10 -10 -9 ------- Run | Yrd Mat Min Exi Min Combat Hostiles Destroyed 34 | . 14 5 . 15 Guns 19 | . 14 5 . . AOE 15 | . . . . 15 Classes Destroyed 5 | . 4 . . 1 Hauler 1 | . 1 . . . Watcher 1 | . 1 . . . Swarmer 9 | . 6 3 . . Grunt 11 | . 8 2 . 1 Assembled 15 | . . . . 15 Best Kill Streak 15 | . 3 3 . 15 Combat Bots Only 15 | . 3 3 . 15 Max Kills in Single Turn 6 | . 1 1 . 6 Gunslinging . | . . . . . Exploded 6 | . . . . 6 Melee . | . . . . . Uniques/NPCs Destroyed . | . . . . . Combat | -11 -10 -10 -10 -9 -------- Run | Yrd Mat Min Exi Min Hostile Shots Fired 120 | . 84 17 . 19 Missed 32 | . 23 5 . 4 Hits 88 | . 61 12 . 15 Melee 1 | . . . . 1 Projectile 87 | . 61 12 . 14 AOE 6 | . . . . 6 Critical Strikes 2 | . 1 1 . . Damage Taken 1239 | . 635 146 . 458 Core 261 | . 149 . . 112 Absorbed by Shields . | . . . . . Redirected to Shielding 24 | . 24 . . . Core Remaining (%) 100 | 100 . . . . Volleys Fired 85 | . 63 12 . 10 Largest 2 | . 2 2 . 2 Hottest 80 | . 80 40 . 53 Shots Fired 168 | . 125 24 . 19 Gun 158 | . 125 24 . 9 Cannon . | . . . . . Launcher 10 | . . . . 10 Special . | . . . . . Kinetic 71 | . 38 24 . 9 Thermal 43 | . 43 . . . Explosive 10 | . . . . 10 Electromagnetic 44 | . 44 . . . Robot Hit Streak 10 | . 10 8 . 2 Robot Miss Streak 6 | . 6 1 . 2 Penetration Max . | . . . . . Secondary Targets 1 | . 1 . . . Max Gunslinging Chain 1 | . 1 . . . Shots Hit Robots 93 | . 71 17 . 5 Core Hits 83 | . 30 11 . 42 Critical Kills . | . . . . . Critical Parts Destroyed . | . . . . . Critical Strikes . | . . . . . Melee Attacks . | . . . . . Impact . | . . . . . Slashing . | . . . . . Piercing . | . . . . . Sneak Attacks . | . . . . . Combat Hostiles . | . . . . . Follow-up Attacks . | . . . . . Damage Inflicted 2076 | . 823 144 . 1109 Guns 977 | . 823 138 . 16 Cannons . | . . . . . Explosions 1093 | . . . . 1093 Melee . | . . . . . Ramming 6 | . . 6 . . Kinetic 362 | . 208 138 . 16 Thermal 289 | . 289 . . . Explosive 1093 | . . . . 1093 Electromagnetic 326 | . 326 . . . Impact . | . . . . . Slashing . | . . . . . Piercing . | . . . . . Highest Corruption . | . . . . . Average Corruption . | . . . . . Corruption Purged . | . . . . . Corruption Blocked . | . . . . . Overload Shots . | . . . . . Overflow Damage 10 | . . . . 10 Projectiles . | . . . . . Explosions 10 | . . . . 10 Melee . | . . . . . Knockbacks . | . . . . . Impact . | . . . . . Kinetic . | . . . . . Secondary . | . . . . . Self-Inflicted Damage 81 | . . . . 81 Shots 2 | . . . . 2 Rammed . | . . . . . Targets Rammed 1 | . . 1 . . Kicked 1 | . . 1 . . Crushed . | . . . . . Highest Temperature 357 | . 357 18 . 63 Average Temperature 74 | . 91 7 . 22 Received Heat Transfer 391 | . 267 84 . 40 Effects 2 | . 2 . . . Energy Bleed 2 | . 2 . . . Siege Activations . | . . . . . Martial Activations . | . . . . . Shielding Activations . | . . . . . Robots Disrupted . | . . . . . Combat Hostiles . | . . . . . Robots Corrupted . | . . . . . Combat Hostiles . | . . . . . Parts Fried . | . . . . . Impact Corruptions . | . . . . . Robots Melted . | . . . . . Combat Hostiles . | . . . . . Parts Melted 1 | . 1 . . . Heat Transferred 650 | . 650 . . . Parts Sabotaged . | . . . . . Parts Stolen . | . . . . . Parts Stripped . | . . . . . Power Chain Reactions . | . . . . . Alert | -11 -10 -10 -10 -9 ------- Run | Yrd Mat Min Exi Min Maximum Alert Level . | . . . . . Low Security (%) 100 | 100 100 100 . 100 Level 1 . | . . . . . Level 2 . | . . . . . Level 3 . | . . . . . Level 4 . | . . . . . Level 5 . | . . . . . High Security . | . . . . . Max Security . | . . . . . Peak Influence 88 | . 63 88 . 8 Initial . | . . . . . Average 18 | . 19 19 . 1 Influence Increases 631 | . 346 239 . 46 Destroy 0b10 Robot/C 440 | . 280 160 . . Destroy 0b10 Robot/NC 15 | . 10 5 . . Destroy Leader 74 | . 44 30 . . Allied During Kill 29 | . . 29 . . Successful Hack 12 | . 12 . . . Destroy Structure 46 | . . . . 46 Lose Combat Pursuer 15 | . . 15 . . Influence Decreases 631 | . 346 239 . 46 Time Decay 573 | . 316 239 . 18 Lost Part 39 | . 30 . . 9 Lost Ally 19 | . . . . 19 Squads Dispatched 1 | . 1 . . . Investigation 1 | . 1 . . . Extermination . | . . . . . Reinforcement . | . . . . . Assault . | . . . . . Garrison . | . . . . . Intercept . | . . . . . Searches Triggered . | . . . . . Construction Impeded . | . . . . . Haulers Reinforced . | . . . . . Active Scanning Responses . | . . . . . Cargo Convoy Interrupts . | . . . . . Stealth | -11 -10 -10 -10 -9 --------- Run | Yrd Mat Min Exi Min Distress Signals 2 | . 2 . . . Communications Jammed . | . . . . . Distress Signals . | . . . . . Times Spotted 43 | . 22 5 . 16 Peak Tracking Total 12 | . 3 2 . 12 Tactical Retreats 1 | . . 1 . . Traps | -11 -10 -10 -10 -9 ------- Run | Yrd Mat Min Exi Min Traps Triggered 1 | . 1 . . . Indirectly . | . . . . . Trap Hack Attempts . | . . . . . Triggered . | . . . . . Disarmed . | . . . . . Reprogrammed . | . . . . . Reused . | . . . . . Traps Extracted . | . . . . . Installed . | . . . . . Triggered . | . . . . . Machines | -11 -10 -10 -10 -9 ---------- Run | Yrd Mat Min Exi Min Machines Disabled . | . . . . . Max in Single Turn . | . . . . . Machines Repaired . | . . . . . Machines Dismantled . | . . . . . Machines Sabotaged . | . . . . . Overloaded Fab Kills . | . . . . . Hacking | -11 -10 -10 -10 -9 --------- Run | Yrd Mat Min Exi Min Machines Accessed 7 | . 5 . 2 . Terminals 5 | . 5 . . . Fabricators . | . . . . . Repair Stations . | . . . . . Recycling Units . | . . . . . Scanalyzers . | . . . . . Garrison Access . | . . . . . Total Hacks 25 | . 21 . 4 . Successful 10 | . 6 . 4 . Failed 14 | . 14 . . . Catastrophic 3 | . 3 . . . Database Lockouts 1 | . 1 . . . Manual 19 | . 18 . 1 . Terminals 21 | . 21 . . . Fabricators . | . . . . . Repair Stations . | . . . . . Recycling Units . | . . . . . Scanalyzers . | . . . . . Garrison Access . | . . . . . Terminal Hacks 9 | . 5 . 4 . Record 3 | . . . 3 . Robot Analysis 3 | . 3 . . . Emergency Access Points 1 | . 1 . . . Terminal Index 1 | . 1 . . . Proto ID Catalog 1 | . . . 1 . Fabricator Hacks . | . . . . . Repair Station Hacks . | . . . . . Recycling Unit Hacks . | . . . . . Scanalyzer . | . . . . . Garrison Access Hacks . | . . . . . Unauthorized Hacks 1 | . 1 . . . Terminals 1 | . 1 . . . Operators 1 | . 1 . . . Fabricators . | . . . . . Repair Stations . | . . . . . Recycling Units . | . . . . . Scanalyzers . | . . . . . Garrison Access . | . . . . . Data Cores Recovered . | . . . . . Used . | . . . . . Hacking Detections 5 | . 5 . . . Full Trace Events . | . . . . . Feedback Events . | . . . . . Feedback Blocked . | . . . . . Robot Schematics Acquired . | . . . . . Robots Built . | . . . . . Authchips . | . . . . . Time . | . . . . . Total Robot Build Rating . | . . . . . Part Schematics Acquired . | . . . . . Parts Built . | . . . . . Authchips . | . . . . . Time . | . . . . . Total Part Build Rating . | . . . . . Parts Repaired . | . . . . . Time . | . . . . . Parts Recycled . | . . . . . Recycled Matter . | . . . . . Retrieved Matter . | . . . . . Retrieved Components . | . . . . . Parts Scanalyzed . | . . . . . Part Schematics Acquired . | . . . . . Parts Damaged . | . . . . . Bothacking | -11 -10 -10 -10 -9 ------------ Run | Yrd Mat Min Exi Min Used RIF Installer . | . . . . . Robots Hacked . | . . . . . Non-combat . | . . . . . Combat . | . . . . . Robot Hacks Applied . | . . . . . Relay Couplers Released . | . . . . . Fabnet Peak Effective % . | . . . . . Robots Rewired . | . . . . . Allies Hacked . | . . . . . Hacks Repelled . | . . . . . Allies | -11 -10 -10 -10 -9 -------- Run | Yrd Mat Min Exi Min Total Allies 5 | . . 5 . . Largest Group 5 | . . 5 5 3 Highest-Rated Group 83 | . . 83 83 40 Highest-Rated Ally 31 | . . 31 31 16 Total Orders . | . . . . . Ally Attacks 13 | . . 7 . 6 Total Damage 164 | . . 87 . 77 Kills 5 | . . 4 . 1 Allies Corrupted . | . . . . . Allies Melted . | . . . . . Intel | -11 -10 -10 -10 -9 ------- Run | Yrd Mat Min Exi Min Active Infowar (turns) . | . . . . . Robot Analysis Total 3 | . 3 . . . Derelict Logs Recovered 2 | . . 2 . . Drone Launches . | . . . . . Drone Recoveries . | . . . . . Exploration | -11 -10 -10 -10 -9 ------------- Run | Yrd Mat Min Exi Min Turns Passed 2796 | 35 1065 1223 399 74 Spaces Moved 1501 | 43 626 596 207 29 Core 42 | 41 1 . . . Treads . | . . . . . Legs 1459 | 2 625 596 207 29 Wheels . | . . . . . Hover . | . . . . . Flight . | . . . . . Fastest Speed 50 | 50 120 190 190 120 Average Speed 159 | 53 126 190 190 153 Slowest Speed 190 | 120 190 190 190 190 Overloaded Moves . | . . . . . Propulsion Burnouts . | . . . . . Robots Hopped . | . . . . . Potential Cave-ins . | . . . . . Cave-ins Triggered . | . . . . . Exploration Rate (%) 53 | 3 89 100 59 16 Regions Visited 4 Branch Regions 3 Pre-discovered Areas 1 | . . . 1 . Known Exits Taken . | . . . . . Unknown Exits Taken 4 | 1 1 1 1 . Scrap Searched 1 | . . 1 . . Spaces Dug 13 | . . . . 13 Terrain Destroyed 65 | . . . . 65 Melee . | . . . . . Projectile . | . . . . . AOE 65 | . . . . 65 Terrain Rammed . | . . . . . Walls Destroyed . | . . . . . Machines Disabled . | . . . . . Actions | -11 -10 -10 -10 -9 --------- Run | Yrd Mat Min Exi Min Total 1756 | 54 780 667 213 42 Wait 122 | . 66 50 6 . Move 1497 | 42 625 595 206 29 Hop . | . . . . . Pick Up 27 | 6 11 9 1 . Fast Attach 2 | 2 . . . . Attach 9 | 4 5 . . . Detach . | . . . . . Swap 7 | . 5 . . 2 Drop 6 | . 5 . . 1 Fire 85 | . 63 12 . 10 Melee . | . . . . . Ram . | . . . . . Kick 1 | . . 1 . . Crush . | . . . . . Escape Stasis . | . . . . . Rewire . | . . . . . Trap . | . . . . . Miscellaneous . | . . . . . Route ------- -11/Scrapyard -10/Materials (discovered 3 exits: *Mat x2 / [*Min]) -10/Mines (discovered 3 exits: *Mat x2 / *Exi) -10/Exiles -9/Mines History --------- Turn | Location | Event 7 | -11/Scrapyard | Discovered new exit (range 16) 36 | -11/Scrapyard | Entered Materials 178 | -10/Materials | Discovered new exit (range 9) 241 | -10/Materials | Discovered new exit (range 5) 302 | -10/Materials | Build established: Mutant 349 | -10/Materials | Lost 3 parts (1p2n) 693 | -10/Materials | Discovered new exit (range 10) 801 | -10/Materials | Core integrity fell below 50% 888 | -10/Materials | Central database locked down 1101 | -10/Materials | Entered Mines 1125 | -10/Mines | Build established: Scavenger-Mutant 1203 | -10/Mines | Found a hidden stash of uninstalled traps 1272 | -10/Mines | Discovered new exit (range 11) 1346 | -10/Mines | Learned Materials trap positions 1515 | -10/Mines | Found a Scrap Suit stashed away for nefarious purposes 1519 | -10/Mines | Found Scrap Suit 1563 | -10/Mines | Received a Rocket Launcher from a helpful Derelict 1693 | -10/Mines | Met a Derelict testing a Signal Generator 1693 | -10/Mines | Identified exit to Materials 1707 | -10/Mines | Found Signal Generator 1740 | -10/Mines | Assisted by bots powering up and referring to "LRC-V3" 2204 | -10/Mines | Found a damaged Exp. Sensor Array with a note attached 2208 | -10/Mines | Found Prototype Device 2237 | -10/Mines | Found DCF Scrap (12 items) 2285 | -10/Mines | Deemed a non-threat by the Exiles lab entrance 2285 | -10/Mines | Discovered new exit (range 5) 2324 | -10/Mines | Entered Exiles 2324 | -10/Exiles | Accompanied by 5 allies 2354 | -10/Exiles | Led the pair of lost Derelicts to a safe place 2372 | -10/Exiles | Met 8R-AWN 2402 | -10/Exiles | Met EX-HEX 2459 | -10/Exiles | Met EX-BIN 2480 | -10/Exiles | Aligned with FarCom system 2482 | -10/Exiles | Given EX-Vault access code 2526 | -10/Exiles | Opened EX-Vault 2549 | -10/Exiles | Found Supersonic Drone Bay 2588 | -10/Exiles | Warned to stay clear of 0b10 Research branches 2647 | -10/Exiles | Learned location of Zion (-7) 2706 | -10/Exiles | Discovered new exit (range 10) 2723 | -10/Exiles | Left Exiles lab with Supersonic Drone Bay 2723 | -10/Exiles | Entered Mines 2723 | -9/Mines | Accompanied by 3 allies 2724 | -9/Mines | Assembled infested the area 2729 | -9/Mines | Assisted by a Guerilla fighting off Assembled 2777 | -9/Mines | Destroyed 15 combat bots 2782 | -9/Mines | Lost 4 allies 2793 | -9/Mines | Core integrity fell below 20% 2797 | -9/Mines | Destroyed by D-53 Grenadier with Mini Grenade Launcher Last Messages --------------- 02753_ as-26649 destroyed. 02753_ as-81272 destroyed. 02753_ as-13750 destroyed. 02753_ as-05328 destroyed. 02753_ Ion Engine destroyed. 02753_ Destroyed Ion Engine. 02753_ Lgt. Armor Plating destroyed. 02753_ Destroyed Lgt. Armor Plating. 02756_ as-08011 destroyed. 02757_ T-07 Excavator is excavating. 02761_ Acquired 1 matter. 02765_ The unstable cave ceiling collapses. 02768_ Dropped Aluminum Leg. 02770_ Acquired 9 matter. 02771_ The unstable cave ceiling collapses. 02771_ Acquired 2 matter. 02775_ The unstable cave ceiling collapses. 02794_ Lgt. Assault Rifle destroyed. 02796_ Flexi-carbon Leg destroyed. 02797_ Aluminum Leg destroyed. Map ----- +----------------------------------------------------+ | ?????????????????????????????????????????????????? | | ?????????????????????????????????????????????????? | | ?????????????????????????????????????????????????? | | ?????????????????????????????????????????????????? | | ?????????????????????????????????????????????????? | | ?????????????????????????????????????????????????? | | ?????????????????????????????????????????????????? | | ?????????????????????????????????????????????????? | | ?????????????????????????????????????????????????? | | ?????????????????????????????????????????????????? | | ?????????????????????????????????????????????????? | | ????????????????????????????##???????????????????? | | ??????????????????????????## # ????????????????? | | ?????????????????????????# ??????????????? | | ????????????????????????? ????????????? | | ????????????????????????? ????????????? | | ???????????????????????## #???????????? | | ???????????????????????# d #????????????? | | ???????????????###?????# #????????????? | | ??????????????## ##????# ##????????????? | | ???###??????### ###### d #?????????????? | | ???# #?????# # # #?????????????? | | ???# #????## ##??????????????? | | ???# ?????# " ### #??????????????? | | #??# #????## # # ###????????????? | | ### ###### @ #???????????? | | # ### ????????? | | """ % #??????????????????? | | ""=%* % # ##??????????????????? | | """!%= = = ##### ## ###???????????????????? | | ![ #???##??##?????????????????????? | | # # # ####??????????????????????????????? | | ## #########?????????????????????????????????? | | ?## ##?????????????????????????????????????????? | | ??#####??????????????????????????????????????????? | | ?????????????????????????????????????????????????? | | | | | | | | | | | | | | | | | | | | | | | | | | | | | +----------------------------------------------------+ Best States ------------- Heat Dissipation 25 Energy Generation 10 Energy Capacity 250 Matter Stores 300 Matter Capacity 300 Sight Range 16 Terrain Scan Density 10 Armor Coverage 150 Core Shielding 20 Evasion (%) 55 Item Schematics ----------------- None Robot Schematics ------------------ None Fabricated ------------ Nothing Repaired ---------- Nothing Alien Tech Used ----------------- None Achievements -------------- None Challenges ------------ None Game ------ Seed IonicOmegaDrillbomb Manual? 0 Play Time 00:15:08 Cumulative 138.6 hours Start 2025.05.22 @ 16:37:47 End 2025.05.22 @ 16:55:49 Sessions 1 Manual Loads 0 Difficulty Rogue Special Mode None Game No. 206 Rogue 203 Adventurer 3 Explorer 0 Win Type - Total 0 Types 0/0/0/0/0/0/0/0/0/0 Lore% 33 Gallery% 53 Achievement% 42 Wizard Run 0 Options --------- Layout 0 ASCII 0 Keyboard 0 Movement Mouse Keybinds 0 Fullscreen 2 Font 18/SmallcapsGlow Map View 76x50 Zoom Use 0% Tactical HUD 1 Map Filters NONE Filters NONE Steam 1 RUN: 5bbc72d2-151f-4cf2-b663-b7264f800df7